fUSD/lending_fUSD_20260227
["ID","MTS","AMOUNT","RATE_DAILY","PERIOD"]
[406763432,1772166646411,-151.0,0.00041096,120]
[406763434,1772166646422,-151.0,0.00041096,35]
[406763436,1772166646431,-694.712671,0.00041096,120]
[406763438,1772166646441,-164.996573,0.00041096,120]
[406763440,1772166646450,-694.712671,0.00041096,120]
[406763442,1772166646459,-694.712671,0.00041096,120]
[406763443,1772166646469,-694.712671,0.00041096,120]
[406763445,1772166646488,-151.0,0.00041096,120]
[406763447,1772166646497,-225.051269,0.00041096,120]
[406763449,1772166646506,-225.051269,0.00041096,120]
[406763451,1772166646515,-151.0,0.00041096,31]
[406763454,1772166646526,-1040.2,0.00041121,30]
[406763455,1772166646536,-10000.0,0.00041173,2]
[406763457,1772166646545,-500.0,0.0004122,7]
[406763459,1772166646555,-433.97,0.0004122,7]
[406763462,1772166646564,-500.0,0.00041272,2]
[406763464,1772166646575,-500.0,0.00041272,2]
[406763466,1772166646584,-500.0,0.00041272,2]
[406763468,1772166646594,-500.0,0.00041272,2]
[406763470,1772166646603,-500.0,0.00041272,2]
[406763472,1772166646613,-500.0,0.00041272,2]
[406763473,1772166646623,-1500000.0,0.00041273,2]
[406763475,1772166646632,-151.0,0.00041273,120]
[406763476,1772166646642,-151.0,0.00041273,120]
[406763477,1772166646651,-172.059775,0.00041273,120]
[406763478,1772166646660,-431.977572,0.00041273,120]
[406763479,1772166646669,-209.530359,0.00041273,120]
[406763480,1772166646678,-155.330113,0.00041273,120]
[406763481,1772166646687,-431.977572,0.00041273,120]
[406763482,1772166646696,-431.977572,0.00041273,120]
[406763483,1772166646705,-431.977572,0.00041273,120]
[406763484,1772166646715,-151.0,0.00041273,120]
[406763485,1772166646724,-151.0,0.00041273,120]
[406763486,1772166646733,-151.0,0.00041273,120]
[406763487,1772166646742,-151.0,0.00041273,120]
[406763488,1772166646751,-180.898308,0.00041273,120]
[406763489,1772166646760,-479.147018,0.00041273,120]
[406763490,1772166646769,-479.147018,0.00041273,120]
[406763491,1772166646779,-479.147018,0.00041273,120]
[406763492,1772166646788,-479.147018,0.00041273,120]
[406763493,1772166646799,-151.0,0.00041273,120]
[406763494,1772166646810,-191.733522,0.00041273,120]
[406763495,1772166646819,-151.0,0.00041273,120]
[406763496,1772166646829,-169.976305,0.00041273,120]
[406763497,1772166646839,-151.0,0.00041273,120]
[406763498,1772166646849,-151.0,0.00041273,120]
[406763499,1772166646863,-151.0,0.00041273,120]
[406763500,1772166646876,-241.889116,0.00041273,120]
[406763501,1772166646885,-151.0,0.00041273,120]
[406763502,1772166646895,-224.302244,0.00041273,120]
[406763503,1772166646905,-151.0,0.00041273,120]
[406763504,1772166646914,-252.330992,0.00041273,30]
[406763505,1772166646924,-252.330992,0.00041273,30]
[406763506,1772166646933,-252.330992,0.00041273,30]
[406763507,1772166646943,-252.330992,0.00041273,30]
[406763508,1772166646953,-151.0,0.00041273,120]
[406763509,1772166646962,-151.0,0.00041273,60]
[406763510,1772166646976,-151.0,0.00041273,120]
[406763511,1772166646985,-151.0,0.00041273,120]
[406763512,1772166646995,-151.0,0.00041273,120]
[406763513,1772166647004,-151.0,0.00041273,120]
[406763514,1772166647013,-778.621354,0.00041273,120]
[406763515,1772166647023,-778.621354,0.00041273,120]
[406763516,1772166647034,-778.621354,0.00041273,120]
[406763517,1772166647048,-778.621354,0.00041273,120]
[406763518,1772166647063,-196.450597,0.00041273,120]
[406763519,1772166647073,-534.832946,0.00041273,120]
[406763520,1772166647082,-151.0,0.00041273,120]
[406763521,1772166647091,-151.0,0.00041273,120]
[406763522,1772166647100,-151.0,0.00041273,120]
[406763523,1772166647110,-151.0,0.00041273,120]
[406763524,1772166647119,-151.0,0.00041273,120]
[406763525,1772166647129,-500.0,0.00041273,2]
[406763526,1772166647138,-534.832946,0.00041273,120]
[406763527,1772166647147,-500.0,0.00041273,2]
[406763528,1772166647156,-534.832946,0.00041273,120]
[406763529,1772166647165,-151.0,0.00041273,120]
[406763530,1772166647176,-158.193026,0.00041273,120]
[406763531,1772166647185,-151.0,0.00041273,120]
[406763532,1772166647195,-500.0,0.00041273,2]
[406763533,1772166647204,-534.832946,0.00041273,120]
[406763534,1772166647213,-151.0,0.00041273,120]
[406763535,1772166647226,-500.0,0.00041273,2]
[406763536,1772166647235,-151.0,0.00041273,120]
[406763537,1772166647244,-151.0,0.00041273,120]
[406763538,1772166647254,-151.0,0.00041273,120]
[406763539,1772166647263,-151.0,0.00041273,120]
[406763540,1772166647272,-151.0,0.00041273,120]
[406763541,1772166647281,-151.0,0.00041273,120]
[406763542,1772166647290,-258.007832,0.00041273,120]
[406763543,1772166647299,-151.0,0.00041273,120]
[406763544,1772166647309,-151.0,0.00041273,120]
[406763545,1772166647318,-162.934635,0.00041273,120]
[406763546,1772166647327,-159.305684,0.00041273,120]
[406763547,1772166647336,-151.0,0.00041273,120]
[406763548,1772166647345,-151.0,0.00041273,7]
[406763549,1772166647355,-151.0,0.00041273,7]
[406763550,1772166647363,-151.0,0.00041273,120]
[406763551,1772166647372,-151.0,0.00041273,120]
[406763552,1772166647381,-151.0,0.00041273,120]
[406763553,1772166647390,-151.0,0.00041273,120]
[406763554,1772166647399,-271.734833,0.00041273,15]
[406763555,1772166647407,-271.734833,0.00041273,15]
[406763556,1772166647416,-271.734833,0.00041273,15]
[406763557,1772166647426,-156.704488,0.00041273,120]
[406763558,1772166647435,-271.734833,0.00041273,15]
[406763559,1772166647445,-151.778143,0.00041273,120]
[406763560,1772166647454,-239.090385,0.00041273,30]
[406763561,1772166647464,-239.090385,0.00041273,30]
[406763562,1772166647475,-2492.329143,0.00041273,120]
[406763563,1772166647485,-239.090385,0.00041273,30]
[406763564,1772166647495,-239.090385,0.00041273,30]
[406763565,1772166647504,-151.0,0.00041273,120]
[406763566,1772166647513,-154.796782,0.00041273,120]
[406763567,1772166647523,-151.0,0.00041273,120]
[406763568,1772166647533,-151.0,0.00041273,120]
[406763569,1772166647542,-151.0,0.00041273,120]
[406763570,1772166647562,-151.0,0.00041273,120]
[406763571,1772166647571,-151.0,0.00041273,120]
[406763572,1772166647581,-209.488269,0.00041273,120]
[406763573,1772166647591,-151.0,0.00041273,120]
[406763574,1772166647601,-403.620948,0.00041273,120]
[406763575,1772166647611,-204.829574,0.00041273,120]
[406763576,1772166647621,-1039.938267,0.00041273,120]
[406763577,1772166647631,-403.620948,0.00041273,120]
[406763578,1772166647641,-1039.938267,0.00041273,120]
[406763579,1772166647651,-838.978636,0.00041273,14]
[406763580,1772166647661,-1039.938267,0.00041273,120]
[406763581,1772166647671,-403.620948,0.00041273,120]
[406763582,1772166647681,-151.0,0.00041273,120]
[406763583,1772166647690,-838.978636,0.00041273,14]
[406763584,1772166647700,-1039.938267,0.00041273,120]
[406763585,1772166647710,-403.620948,0.00041273,120]
[406763586,1772166647720,-151.0,0.00041273,120]
[406763587,1772166647732,-838.978636,0.00041273,14]
[406763588,1772166647742,-151.0,0.00041273,120]
[406763589,1772166647751,-838.978636,0.00041273,14]
[406763590,1772166647761,-152.605808,0.00041273,120]
[406763591,1772166647771,-151.0,0.00041273,120]
[406763592,1772166647781,-151.0,0.00041273,120]
[406763593,1772166647791,-151.36324,0.00041273,120]
[406763594,1772166647801,-151.36324,0.00041273,120]
[406763595,1772166647811,-151.36324,0.00041273,120]
[406763596,1772166647821,-151.36324,0.00041273,120]
[406763597,1772166647831,-175.958047,0.00041273,120]
[406763598,1772166647841,-832.47298,0.00041273,120]
[406763599,1772166647851,-832.47298,0.00041273,120]
[406763600,1772166647860,-832.47298,0.00041273,120]
[406763601,1772166647875,-832.47298,0.00041273,120]
[406763602,1772166647885,-187.550299,0.00041273,90]
[406763603,1772166647895,-187.550299,0.00041273,90]
[406763604,1772166647905,-187.550299,0.00041273,90]
[406763605,1772166647919,-187.550299,0.00041273,90]
[406763606,1772166647930,-151.0,0.00041273,120]
[406763607,1772166647941,-151.0,0.00041273,120]
[406763608,1772166647951,-151.0,0.00041273,120]
[406763609,1772166647961,-151.0,0.00041273,35]
[406763610,1772166647972,-694.712671,0.00041273,120]
[406763611,1772166647982,-694.712671,0.00041273,120]
[406763612,1772166647992,-694.712671,0.00041273,120]
[406763613,1772166648002,-694.712671,0.00041273,120]
[406763614,1772166648012,-216.381473,0.00041273,120]
[406763615,1772166648022,-225.051269,0.00041273,120]
[406763616,1772166648032,-225.051269,0.00041273,120]
[406763617,1772166648042,-151.0,0.00041273,31]
[406763618,1772166648052,-253.271,0.00041288,30]
[406763619,1772166648063,-11760.41,0.000413,30]
[406763620,1772166648073,-500.0,0.00041398,60]
[406763621,1772166648084,-600.0,0.00041398,60]
[406763622,1772166648094,-800.0,0.00041398,60]
[406763623,1772166648108,-151.0,0.000414,120]
[406763624,1772166648118,-856.45675791,0.00041401,2]
[406763625,1772166648127,-306.29679311,0.00041401,2]
[406763626,1772166648137,-852.28136836,0.00041401,2]
[406763627,1772166648147,-1565.26887382,0.00041401,2]
[406763628,1772166648158,-307.55492962,0.00041401,2]
[406763629,1772166648168,-459.19979016,0.00041401,2]
[406763630,1772166648177,-300.0,0.00041401,2]
[406763631,1772166648187,-300.0,0.00041401,2]
[406763632,1772166648197,-371.72919772,0.00041401,2]
[406763633,1772166648207,-300.0,0.00041401,2]
[406763634,1772166648217,-300.0,0.00041401,2]
[406763635,1772166648228,-518.87544826,0.00041401,2]
[406763636,1772166648238,-306.51036434,0.00041401,2]
[406763637,1772166648248,-538.97683895,0.00041401,2]
[406763638,1772166648259,-300.0,0.00041401,2]
[406763639,1772166648269,-300.0,0.00041401,2]
[406763640,1772166648279,-511.30277196,0.00041401,2]
[406763641,1772166648289,-375.40453217,0.00041401,2]
[406763642,1772166648299,-528.6119758,0.00041401,2]
[406763643,1772166648313,-300.0,0.00041401,2]
[406763644,1772166648322,-300.0,0.00041401,2]
[406763645,1772166648332,-300.00000001,0.00041401,2]
[406763646,1772166648342,-300.00000001,0.00041401,2]
[406763647,1772166648352,-1083.06069021,0.00041401,2]
[406763648,1772166648362,-315.61667618,0.00041401,2]
[406763649,1772166648372,-458.40092172,0.00041401,2]
[406763650,1772166648382,-448.63811838,0.00041401,2]
[406763651,1772166648391,-300.0,0.00041401,2]
[406763652,1772166648401,-856.45675791,0.00041401,2]
[406763653,1772166648411,-306.29679311,0.00041401,2]
[406763654,1772166648420,-852.28136836,0.00041401,2]
[406763655,1772166648430,-1565.26887382,0.00041401,2]
[406763656,1772166648440,-307.55492962,0.00041401,2]
[406763657,1772166648449,-300.0,0.00041401,2]
[406763658,1772166648459,-459.19979016,0.00041401,2]
[406763659,1772166648468,-300.0,0.00041401,2]
[406763660,1772166648479,-300.0,0.00041401,2]
[406763661,1772166648489,-300.0,0.00041401,2]
[406763662,1772166648499,-371.72919772,0.00041401,2]
[406763663,1772166648513,-342.99090995,0.00041401,2]
[406763664,1772166648523,-419.81311211,0.00041401,2]
[406763665,1772166648534,-300.0,0.00041401,2]
[406763666,1772166648544,-519.04834756,0.00041401,2]
[406763667,1772166648554,-306.51036434,0.00041401,2]
[406763668,1772166648564,-300.0,0.00041401,2]
[406763669,1772166648574,-300.0,0.00041401,2]
[406763670,1772166648583,-405.58612148,0.00041401,2]
[406763671,1772166648593,-253.271,0.00041488,30]
[406763672,1772166648603,-154.0,0.000415,120]
[406763673,1772166648613,-166.4051197,0.0004158,120]
[406763674,1772166648623,-844.0,0.00041644,120]
[406763675,1772166648633,-250.0,0.00041644,10]
[406763676,1772166648643,-253.271,0.00041688,30]
[406763677,1772166648652,-1439.46,0.000417,14]
[406763678,1772166648662,-310.44455,0.000418,120]
[406763679,1772166648672,-1040.2,0.0004186,30]
[406763680,1772166648683,-253.271,0.00041888,30]
[406763681,1772166648695,-614.79491102,0.00041918,10]
[406763682,1772166648705,-500.0,0.00041918,120]
[406763683,1772166648715,-350.2144133,0.00041918,120]
[406763684,1772166648726,-800.0,0.00041946,60]
[406763685,1772166648736,-600.0,0.00041946,60]
[406763686,1772166648747,-500.0,0.00041946,60]
[406763687,1772166648757,-252.77720625,0.00042,30]
[406763688,1772166648767,-535.35,0.00042,30]
[406763689,1772166648777,-150.0,0.00042088,14]
[406763690,1772166648787,-3322.97570318,0.00042094,15]
[406763691,1772166648797,-150.0,0.00042106,14]
[406763692,1772166648807,-561.7687,0.0004212,120]
[406763693,1772166648817,-1000.0,0.00042134,2]
[406763694,1772166648827,-1066.98996505,0.00042145,14]
[406763695,1772166648837,-150.0,0.00042173,120]
[406763696,1772166648848,-1000.0,0.00042185,14]
[406763697,1772166648857,-151.0,0.00042191,120]
[406763698,1772166648868,-844.0,0.00042192,120]
[406763699,1772166648878,-350.0,0.00042192,10]
[406763700,1772166648893,-150.0,0.00042192,30]
[406763701,1772166648902,-156.86344822,0.00042192,30]
[406763702,1772166648912,-150.0,0.00042192,30]
[406763703,1772166648922,-150.0,0.00042192,30]
[406763704,1772166648932,-150.0,0.00042192,30]
[406763705,1772166648942,-150.0,0.00042192,30]
[406763706,1772166648951,-284.09335582,0.00042192,30]
[406763707,1772166648961,-150.0,0.00042192,30]
[406763708,1772166648971,-150.0,0.00042192,30]
[406763709,1772166648983,-150.0,0.00042192,30]
[406763710,1772166648993,-150.0,0.00042192,30]
[406763711,1772166649003,-150.0,0.00042192,30]
[406763712,1772166649014,-150.0,0.00042192,30]
[406763713,1772166649024,-150.0,0.00042192,30]
[406763714,1772166649034,-150.0,0.00042192,30]
[406763715,1772166649044,-150.0,0.00042192,30]
[406763716,1772166649054,-500.0,0.00042193,120]
[406763717,1772166649063,-500.0,0.00042193,120]
[406763718,1772166649073,-500.0,0.00042193,2]
[406763719,1772166649083,-500.0,0.00042193,2]
[406763720,1772166649093,-4275.08123211,0.00042194,56]
[406763721,1772166649103,-935.63818804,0.00042194,30]
[406763722,1772166649112,-436053.551465,0.00042194,2]
[406763723,1772166649122,-828.7283476,0.00042194,2]
[406763724,1772166649132,-555060.0782153,0.00042194,2]
[406763725,1772166649142,-151.0,0.00042194,120]
[406763726,1772166649152,-151.0,0.00042194,120]
[406763727,1772166649162,-151.0,0.00042194,120]
[406763728,1772166649171,-185.644654,0.00042194,120]
[406763729,1772166649184,-151.0,0.00042194,120]
[406763730,1772166649195,-151.000023,0.00042194,120]
[406763731,1772166649204,-220.956002,0.00042194,120]
[406763732,1772166649214,-220.956002,0.00042194,120]
[406763733,1772166649224,-178.227243,0.00042194,120]
[406763734,1772166649234,-151.0,0.00042194,120]
[406763735,1772166649244,-220.956002,0.00042194,120]
[406763736,1772166649254,-220.956002,0.00042194,120]
[406763737,1772166649265,-151.0,0.00042194,120]
[406763738,1772166649275,-151.0,0.00042194,120]
[406763739,1772166649294,-151.0,0.00042194,120]
[406763740,1772166649305,-151.0,0.00042194,120]
[406763741,1772166649316,-151.0,0.00042194,120]
[406763742,1772166649326,-151.0,0.00042194,120]
[406763743,1772166649337,-203.378535,0.00042194,120]
[406763744,1772166649350,-15994.4072946,0.00042194,2]
[406763745,1772166649362,-431.977572,0.00042194,120]
[406763746,1772166649372,-431.977572,0.00042194,120]
[406763747,1772166649383,-431.977572,0.00042194,120]
[406763748,1772166649393,-431.977572,0.00042194,120]
[406763749,1772166649403,-151.0,0.00042194,120]
[406763750,1772166649413,-151.0,0.00042194,120]
[406763751,1772166649423,-151.0,0.00042194,120]
[406763752,1772166649433,-479.147018,0.00042194,120]
[406763753,1772166649443,-479.147018,0.00042194,120]
[406763754,1772166649454,-479.147018,0.00042194,120]
[406763755,1772166649465,-479.147018,0.00042194,120]
[406763756,1772166649475,-158.326394,0.00042194,120]
[406763757,1772166649485,-182.668445,0.00042194,120]
[406763758,1772166649495,-151.0,0.00042194,120]
[406763759,1772166649506,-151.0,0.00042194,120]
[406763760,1772166649516,-151.0,0.00042194,120]
[406763761,1772166649526,-151.0,0.00042194,120]
[406763762,1772166649536,-252.330992,0.00042194,30]
[406763763,1772166649546,-252.330992,0.00042194,30]
[406763764,1772166649557,-252.330992,0.00042194,30]
[406763765,1772166649567,-252.330992,0.00042194,30]
[406763766,1772166649578,-151.0,0.00042194,60]
[406763767,1772166649589,-151.0,0.00042194,120]
[406763768,1772166649599,-151.0,0.00042194,120]
[406763769,1772166649610,-244.678012,0.00042194,120]
[406763770,1772166649620,-778.621354,0.00042194,120]
[406763771,1772166649631,-778.621354,0.00042194,120]
[406763772,1772166649641,-778.621354,0.00042194,120]
[406763773,1772166649655,-778.621354,0.00042194,120]
[406763774,1772166649665,-534.832946,0.00042194,120]
[406763775,1772166649676,-151.0,0.00042194,120]
[406763776,1772166649686,-151.0,0.00042194,120]
[406763777,1772166649698,-236.478544,0.00042194,120]
[406763778,1772166649709,-500.0,0.00042194,2]
[406763779,1772166649719,-534.832946,0.00042194,120]
[406763780,1772166649732,-500.0,0.00042194,2]
[406763781,1772166649743,-534.832946,0.00042194,120]
[406763782,1772166649753,-151.0,0.00042194,120]
[406763783,1772166649764,-293.960054,0.00042194,120]
[406763784,1772166649780,-500.0,0.00042194,2]
[406763785,1772166649790,-534.832946,0.00042194,120]
[406763786,1772166649801,-151.0,0.00042194,120]
[406763787,1772166649811,-500.0,0.00042194,2]
[406763788,1772166649823,-151.0,0.00042194,120]
[406763789,1772166649833,-151.0,0.00042194,120]
[406763790,1772166649845,-151.0,0.00042194,120]
[406763791,1772166650104,-151.0,0.00042194,120]
[406763792,1772166650114,-151.0,0.00042194,120]
[406763793,1772166650126,-151.0,0.00042194,120]
[406763794,1772166650136,-151.0,0.00042194,7]
[406763795,1772166650145,-151.0,0.00042194,7]
[406763796,1772166650155,-151.0,0.00042194,120]
[406763797,1772166650165,-151.0,0.00042194,120]
[406763798,1772166650175,-151.0,0.00042194,120]
[406763799,1772166650184,-151.0,0.00042194,120]
[406763800,1772166650194,-271.734833,0.00042194,15]
[406763801,1772166650204,-271.734833,0.00042194,15]
[406763802,1772166650213,-271.734833,0.00042194,15]
[406763803,1772166650223,-271.734833,0.00042194,15]
[406763804,1772166650234,-239.090385,0.00042194,30]
[406763805,1772166650243,-239.090385,0.00042194,30]
[406763806,1772166650253,-2492.329143,0.00042194,120]
[406763807,1772166650264,-239.090385,0.00042194,30]
[406763808,1772166650274,-239.090385,0.00042194,30]
[406763809,1772166650284,-151.0,0.00042194,120]
[406763810,1772166650293,-119006.5267505,0.00042194,2]
[406763811,1772166650304,-226.677043,0.00042194,120]
[406763812,1772166650313,-151.000011,0.00042194,120]
[406763813,1772166650322,-151.0,0.00042194,120]
[406763814,1772166650332,-151.0,0.00042194,120]
[406763815,1772166650341,-151.0,0.00042194,120]
[406763816,1772166650351,-185.234928,0.00042194,120]
[406763817,1772166650361,-403.620948,0.00042194,120]
[406763818,1772166650370,-1039.938267,0.00042194,120]
[406763819,1772166650379,-1039.938267,0.00042194,120]
[406763820,1772166650389,-403.620948,0.00042194,120]
[406763821,1772166650398,-838.978636,0.00042194,14]
[406763822,1772166650408,-1039.938267,0.00042194,120]
[406763823,1772166650418,-403.620948,0.00042194,120]
[406763824,1772166650428,-151.0,0.00042194,120]
[406763825,1772166650437,-838.978636,0.00042194,14]
[406763826,1772166650447,-1039.938267,0.00042194,120]
[406763827,1772166650457,-403.620948,0.00042194,120]
[406763828,1772166650466,-151.0,0.00042194,120]
[406763829,1772166650475,-838.978636,0.00042194,14]
[406763830,1772166650485,-151.0,0.00042194,120]
[406763831,1772166650494,-838.978636,0.00042194,14]
[406763832,1772166650507,-151.0,0.00042194,120]
[406763833,1772166650517,-151.36324,0.00042194,120]
[406763834,1772166650527,-151.36324,0.00042194,120]
[406763835,1772166650536,-151.36324,0.00042194,120]
[406763836,1772166650546,-151.36324,0.00042194,120]
[406763837,1772166650556,-832.47298,0.00042194,120]
[406763838,1772166650565,-832.47298,0.00042194,120]
[406763839,1772166650575,-832.47298,0.00042194,120]
[406763840,1772166650584,-832.47298,0.00042194,120]
[406763841,1772166650594,-187.550299,0.00042194,90]
[406763842,1772166650604,-187.550299,0.00042194,90]
[406763843,1772166650614,-187.550299,0.00042194,90]
[406763844,1772166650624,-187.550299,0.00042194,90]
[406763845,1772166650633,-246.396748,0.00042194,120]
[406763846,1772166650642,-151.000035,0.00042194,120]
[406763847,1772166650652,-291.514579,0.00042194,120]
[406763848,1772166650661,-694.712671,0.00042194,120]
[406763849,1772166650671,-206.26011,0.00042194,35]
[406763850,1772166650681,-694.712671,0.00042194,120]
[406763851,1772166650690,-694.712671,0.00042194,120]
[406763852,1772166650703,-694.712671,0.00042194,120]
[406763853,1772166650713,-225.051269,0.00042194,120]
[406763854,1772166650723,-225.051269,0.00042194,120]
[406763855,1772166650734,-151.0,0.00042194,31]
[406763856,1772166650744,-219.985,0.00042195,2]
[406763857,1772166650754,-241.08852704,0.00042202,14]
[406763858,1772166650764,-151.0,0.00042216,30]
[406763859,1772166650774,-366.78796296,0.00042219,120]
[406763860,1772166650784,-500.0,0.00042219,120]
[406763861,1772166650793,-500.0,0.00042219,120]
[406763862,1772166650804,-500.0,0.00042219,120]
[406763863,1772166650813,-666.0,0.00042219,120]
[406763864,1772166650823,-250.0,0.00042219,7]
[406763865,1772166650833,-500.0,0.00042219,7]
[406763866,1772166650843,-250.0,0.00042219,7]
[406763867,1772166650852,-500.0,0.00042219,7]
[406763868,1772166650862,-250.0,0.00042219,7]
[406763869,1772166650873,-500.0,0.00042219,7]
[406763870,1772166650884,-200.0,0.00042219,7]
[406763871,1772166650897,-250.0,0.00042219,7]
[406763872,1772166650907,-500.0,0.00042219,7]
[406763873,1772166650917,-250.0,0.00042219,7]
[406763874,1772166650927,-203.16821777,0.00042219,7]
[406763875,1772166650937,-500.0,0.00042219,7]
[406763876,1772166650948,-250.0,0.00042219,7]
[406763877,1772166650957,-151.0,0.00042219,7]
[406763878,1772166650967,-500.0,0.00042219,7]
[406763879,1772166650978,-250.0,0.00042219,7]
[406763880,1772166650988,-164.35193227,0.00042219,7]
[406763881,1772166650998,-250.0,0.00042219,7]
[406763882,1772166651008,-500.0,0.00042219,7]
[406763883,1772166651018,-250.0,0.00042219,7]
[406763884,1772166651028,-259.10294064,0.00042219,7]
[406763885,1772166651038,-582.78214508,0.00042219,7]
[406763886,1772166651048,-250.0,0.00042219,7]
[406763887,1772166651058,-256.63658865,0.00042219,7]
[406763888,1772166651068,-500.0,0.00042219,7]
[406763889,1772166651078,-500.0,0.00042219,7]
[406763890,1772166651089,-500.0,0.00042219,7]
[406763891,1772166651100,-500.0,0.00042219,7]
[406763892,1772166651110,-500.0,0.00042219,7]
[406763893,1772166651120,-500.0,0.00042219,7]
[406763894,1772166651130,-500.0,0.00042219,7]
[406763895,1772166651140,-500.0,0.00042219,7]
[406763896,1772166651149,-500.0,0.00042219,7]
[406763897,1772166651159,-500.0,0.00042219,7]
[406763898,1772166651169,-189.804718,0.00042219,7]
[406763899,1772166651179,-500.0,0.00042219,7]
[406763900,1772166651188,-500.0,0.00042219,7]
[406763901,1772166651199,-500.0,0.00042219,7]
[406763902,1772166651208,-500.0,0.00042219,7]
[406763903,1772166651218,-500.0,0.00042219,7]
[406763904,1772166651228,-500.0,0.00042219,7]
[406763905,1772166651238,-500.0,0.00042219,7]
[406763906,1772166651247,-500.0,0.00042219,7]
[406763907,1772166651257,-500.0,0.00042219,7]
[406763908,1772166651267,-500.0,0.00042219,7]
[406763909,1772166651276,-500.0,0.00042219,7]
[406763910,1772166651286,-151.0,0.00042219,7]
[406763911,1772166651296,-500.0,0.00042219,7]
[406763912,1772166651306,-151.0,0.00042219,7]
[406763913,1772166651318,-500.0,0.00042219,7]
[406763914,1772166651329,-151.0,0.00042219,7]
[406763915,1772166651339,-500.0,0.00042219,7]
[406763916,1772166651349,-151.0,0.00042219,7]
[406763917,1772166651359,-151.0,0.00042219,7]
[406763918,1772166651369,-151.0,0.00042219,7]
[406763919,1772166651379,-151.0,0.00042219,7]
[406763920,1772166651389,-151.0,0.00042219,7]
[406763921,1772166651399,-151.0,0.00042219,7]
[406763922,1772166651408,-151.0,0.00042219,7]
[406763923,1772166651419,-151.0,0.00042219,7]
[406763924,1772166651428,-151.0,0.00042219,7]
[406763925,1772166651438,-151.0,0.00042219,7]
[406763926,1772166651447,-151.0,0.00042219,7]
[406763927,1772166651456,-1338.33623944,0.00042219,7]
[406763928,1772166651474,-500.0,0.00042219,7]
[406763929,1772166651487,-646.36623167,0.00042219,7]
[406763930,1772166651498,-500.0,0.00042219,7]
[406763931,1772166651508,-500.0,0.00042219,7]
[406763932,1772166651518,-500.0,0.00042219,7]
[406763933,1772166651528,-500.0,0.00042219,7]
[406763934,1772166651538,-500.0,0.00042219,7]
[406763935,1772166651548,-500.0,0.00042219,7]
[406763936,1772166651558,-500.0,0.00042219,7]
[406763937,1772166651569,-500.0,0.00042219,7]
[406763938,1772166651581,-500.0,0.00042219,7]
[406763939,1772166651591,-500.0,0.00042219,7]
[406763940,1772166651602,-500.0,0.00042219,7]
[406763941,1772166651612,-500.0,0.00042219,7]
[406763942,1772166651623,-500.0,0.00042219,7]
[406763943,1772166651633,-500.0,0.00042219,7]
[406763944,1772166651643,-248.71531821,0.00042219,7]
[406763945,1772166651654,-257.91778498,0.00042219,7]
[406763946,1772166651665,-274.32735207,0.00042219,7]
[406763947,1772166651676,-250.0,0.00042219,7]
[406763948,1772166651686,-255.78372187,0.00042219,7]
[406763949,1772166651696,-646.65982734,0.00042219,7]
[406763950,1772166651706,-278.92598564,0.00042219,7]
[406763951,1772166651715,-621.78829552,0.00042219,7]
[406763952,1772166651725,-644.79446246,0.00042219,7]